[Event "French-ch Youth U18 2022"]
[Site "Agen"]
[Date "2022.04.23"]
[Round "8.3"]
[White "Eveno, Nathan"]
[Black "Maugenest, Ghislain"]
[Result "1-0"]
[ECO "C88"]
[WhiteElo "2107"]
[BlackElo "2256"]
[Annotator "TA"]
[PlyCount "183"]
[EventDate "2022.04.17"]
[EventType "swiss"]
[EventCountry "FRA"]
[SourceTitle "playchess.com"]
[Source "ChessBase"]
[SourceQuality "1"]
[TimeControl "5400+30"]

{[%evp 20,183,46,16,31,28,52,24,52,24,33,16,20,25,43,46,89,95,91,93,110,108,115,106,125,104,102,99,117,102,129,114,113,103,154,144,131,117,189,67,67,67,67,67,67,67,68,70,79,79,71,85,118,118,127,101,102,102,102,102,95,95,95,95,95,95,95,95,95,94,96,79,80,79,150,150,152,167,167,154,131,0,649,615,684,405,673,584,584,584,1118,8,8,8,8,8,8,8,8,8,8,8,8,8,8,8,8,8,8,8,8,8,8,8,29959,29961,29961,29962,29962,29963,29963,29961,29960,0,29963,29964,29964,29964,29960,29965,29965,29966,29969,29970,29970,29971,29970,29972,29971,29972,29972,29974,29974,29975,29975,29976,29977,29978,29978,29979,29979,29980,29980,29981,29981,29980,29980,29980,29980,29981,29981,29982,29981,29982,29994,5616]} 1. e4 {[%emt 0:00:07]} e5 {[%emt 0:00:18]} 2. Nf3 {[%emt 0:00:05]} Nc6 {[%emt 0:00:14]} 3. Bb5 {[%emt 0:00:09]} a6 {[%emt 0:00:23]} 4. Ba4 {[%emt 0:00:06]} Nf6 {[%emt 0:00:21]} 5. O-O {[%emt 0:00:11]} Be7 {[%emt 0:00:51]} 6. Re1 {[%emt 0:00:25]} b5 {[%emt 0:00:43]} 7. Bb3 {[%emt 0:00:06]} O-O {[%emt 0:00:33]} 8. a4 {[%emt 0:00:45]} Rb8 {[%emt 0:06:00]} 9. axb5 {[%emt 0:00:39]} axb5 {[%emt 0:00:07]} 10. c3 {[%emt 0:00:30]} d6 {[%emt 0:16:27]} 11. h3 {[%emt 0:01:20]} (11. d4 $5 {[%cal Rd4d5]} Rb6 12. d5 $14) 11... Bb7 {[%emt 0:05:24] C88: Closed Ruy Lopez: Anti-Marshall Systems.} 12. d3 {[%emt 0:14:13]} h6 {[%emt 0:02:26]} 13. Nbd2 {[%emt 0:04:34][%cal Bb1d2,Bd2f1,Bf1g3,Bg3h5,Bh5f6][%mdl 32]} Re8 {[%emt 0:00:41] White has an edge.} 14. Nf1 {[%emt 0:01:07]} Bf8 {[%emt 0:03:38]} 15. Ng3 {[%emt 0:09:14]} Ra8 {[%emt 0:12:43] [#]} 16. Rxa8 $146 {[%emt 0:08:20]} ({Predecessor:} 16. Bd2 Na5 17. Bc2 c5 18. Nf5 Nc6 19. g4 Rxa1 20. Qxa1 d5 21. g5 Nh5 22. gxh6 g6 23. Ng5 Qf6 24. h7+ {½-½ (26) Raaste,E (2370)-Valkesalmi,K (2390) Helsinki 1987}) 16... Bxa8 {[%emt 0:06:12]} 17. Nh2 {[%emt 0:06:09]} Nb8 {[%emt 0:11:14]} 18. Ng4 {[%emt 0:12:02]} Nbd7 {[%emt 0:01:41]} 19. Qf3 $1 {[%emt 0:04:01]} c6 {[%emt 0:16:05] [#]} 20. Nh5 $1 {[%emt 0:05:50][%cal Oc1h6][%mdl 512] &Bianco is much more active.} d5 {[%emt 0:01:39]} (20... Qe7 21. Nhxf6+) 21. Nhxf6+ {[%emt 0:03:51]} Nxf6 {[%emt 0:00:02] [#]} 22. Bxh6 $1 {[%emt 0:00:17][%mdl 512]} Nxg4 {[%emt 0:02:19]} 23. Qxg4 {[%emt 0:00:06]} Qd6 {[%emt 0:01:19]} 24. Be3 {[%emt 0:06:13]} b4 {[%emt 0:00:37]} 25. Ra1 {[%emt 0:00:19]} Bb7 {[%emt 0:01:37]} 26. Qh5 {[%emt 0:03:04]} Bc8 {[%emt 0:02:47]} (26... Qe7 $142 27. exd5 (27. Ra7 Ra8 $16) 27... cxd5) 27. exd5 $16 {[%emt 0:03:22]} ({Resist} 27. Ra7 Be6 $16) 27... cxd5 {[%emt 0:00:17]} 28. d4 {[%emt 0:00:41]} g6 {[%emt 0:03:58] [#]} (28... Bb7 $16 {was necessary.} 29. Ra7 Re7) 29. Qh4 {[%emt 0:06:51]} (29. dxe5 $1 $18 {[%mdl 512]} Rxe5 30. Qd1) 29... bxc3 $14 {[%emt 0:00:58]} 30. bxc3 {[%emt 0:00:09]} Bg7 {[%emt 0:00:57]} 31. dxe5 {[%emt 0:01:31]} Bxe5 {[%emt 0:00:30]} 32. Bd4 {[%emt 0:01:21]} Bf5 {[%emt 0:02:51]} 33. Bxe5 {[%emt 0:04:01]} (33. Rd1 {keeps more tension.} Be4 34. f3 Bxd4+ 35. Rxd4 Qa3 36. Bxd5 Bxd5 37. Rxd5 Qxc3 38. Kh2) 33... Qxe5 {[%emt 0:00:02]} 34. Qd4 {[%emt 0:01:32]} Qxd4 {[%emt 0:00:02]} 35. cxd4 $16 {[%emt 0:00:06][%mdl 4096] Endgame KRB-KRB} Be6 {[%emt 0:00:07]} 36. Ra5 {[%emt 0:00:32]} Rd8 {[%emt 0:00:07]} 37. h4 {[%emt 0:00:53]} Kf8 {[%emt 0:00:13]} 38. Kh2 {[%emt 0:01:04]} Ke7 {[%emt 0:00:39]} 39. Kg3 {[%emt 0:00:18]} Kd6 {[%emt 0:00:09]} 40. Kf4 {[%emt 0:01:45]} Rb8 {[%emt 0:00:29]} 41. Ra6+ {[%emt 0:00:12]} Ke7 {[%emt 0:00:16]} 42. Ra3 {[%emt 0:01:28]} Rb4 {[%emt 0:02:05]} 43. Ke3 {[%emt 0:00:04]} Kf6 {[%emt 0:01:16]} 44. Ba2 {[%emt 0:00:29]} Rb5 {Prevents Ra5.} 45. f3 {[%emt 0:00:33]} Rb2 {[%emt 0:01:03]} 46. g4 {[%emt 0:01:16] aiming for Ra5.} Rh2 {[%emt 0:00:30]} (46... Ke7 $142) 47. Ra5 $1 {[%emt 0:00:03]} Rxh4 {[%emt 0:00:16]} 48. Bxd5 {[%emt 0:00:14]} Bxd5 {[%emt 0:00:09]} 49. Rxd5 {[%emt 0:00:01] Hoping for Re5. KR-KR} Rh1 {[%emt 0:00:56]} 50. Re5 {[%emt 0:01:37]} (50. Ra5 $16) 50... Rg1 $2 {[%emt 0:00:46][%mdl 8192]} (50... Re1+ $11 51. Kf4 Rxe5 52. dxe5+ Ke6) 51. Kf4 $18 {[%emt 0:00:56]} Rd1 {[%emt 0:00:24]} 52. g5+ {[%emt 0:00:18]} Kg7 {[%emt 0:00:01]} 53. Ke4 {[%emt 0:01:17]} Kf8 {[%emt 0:00:57][%cal Of7f6]} 54. Kd5 {[%emt 0:00:35]} Ra1 {[%emt 0:00:36]} 55. f4 $2 {[%emt 0:00:29]} (55. Kc6 $18 f6 56. gxf6) 55... f6 $1 $11 {[%emt 0:00:32]} 56. gxf6 {[%emt 0:00:32] Threatens to win with Re7.} Kf7 {[%emt 0:00:01]} 57. Ke4 {[%emt 0:00:32]} Kxf6 {[%emt 0:00:25]} 58. Rb5 {[%emt 0:00:29]} Re1+ {[%emt 0:00:53]} 59. Kf3 {[%emt 0:00:25]} Rd1 {[%emt 0:00:28]} 60. Rd5 {[%emt 0:00:31]} Ke6 {[%emt 0:00:34]} 61. Re5+ {[%emt 0:00:32]} Kd6 {[%emt 0:00:22]} 62. Kg4 {[%emt 0:00:34]} Rxd4 {[%emt 0:00:23]} 63. Kg5 {[%emt 0:00:12]} Kd7 {[%emt 0:00:33]} 64. Re1 {[%emt 0:00:32]} Rd6 {[%emt 0:00:28]} 65. Re4 {[%emt 0:00:36]} Ra6 {[%emt 0:00:32]} 66. Kh6 {[%emt 0:00:33] Threatening mate with Kg7.} Rf6 $2 {[%emt 0:00:50][%mdl 8192] White stays focused until the end.} (66... Rd6 $11) 67. Kg7 $1 {[%emt 0:00:32]} Ra6 {[%emt 0:00:28]} 68. Kf7 {[%emt 0:00:07]} Rb6 {[%emt 0:00:35]} 69. Re7+ {[%emt 0:00:50]} Kd8 {[%emt 0:00:00]} 70. Re8+ {[%emt 0:00:32]} Kd7 {[%emt 0:00:01]} 71. Re7+ {[%emt 0:00:05]} Kd8 {[%emt 0:00:02]} 72. Re6 {[%emt 0:00:28] White mates.} Rb4 {[%emt 0:00:12]} 73. Rd6+ {[%emt 0:00:20]} Kc7 {[%emt 0:00:01]} 74. Rf6 {[%emt 0:00:07]} Kd7 {[%emt 0:00:28]} 75. Kxg6 {[%emt 0:00:26]} Ke7 {[%emt 0:01:00]} 76. Kg7 {[%emt 0:00:36]} Rb1 {[%emt 0:02:08] [#]} 77. f5 $1 {[%emt 0:00:49]} Rf1 {[%emt 0:00:30]} 78. Re6+ {[%emt 0:00:15]} Kd7 {[%emt 0:00:02]} 79. Kf6 {[%emt 0:00:13]} Rf2 {[%emt 0:00:42]} 80. Re1 {[%emt 0:00:10]} Rf3 {[%emt 0:00:45]} 81. Kg6 {[%emt 0:00:12]} Rf2 {[%emt 0:00:24]} 82. f6 {[%emt 0:00:06]} Rf3 {[%emt 0:00:16]} 83. Kg7 {[%emt 0:00:47]} Rf2 {[%emt 0:00:33]} 84. f7 {[%emt 0:02:13]} Rg2+ {[%emt 0:00:02] [#]} 85. Kf8 $1 {[%emt 0:00:11]} Rg3 {[%emt 0:00:32]} 86. Rd1+ {[%emt 0:00:13]} Kc7 {[%emt 0:00:15]} 87. Rd5 {[%emt 0:00:57]} Kc6 {[%emt 0:00:25]} 88. Rh5 {[%emt 0:00:53]} Kd7 {[%emt 0:00:52]} 89. Rh7 {[%emt 0:00:27]} Ke6 {[%emt 0:01:19]} 90. Rg7 {[%emt 0:00:17]} Rf3 {[%emt 0:00:26]} 91. Kg8 {[%emt 0:00:42]} Ke7 {[%emt 0:00:16]} 92. f8=Q+ {[%emt 0:00:10] Weighted Error Value: White=0.25 (precise) /Black=0.26 (precise)} 1-0

[Event "French-ch Youth U18 2022"]
[Site "Agen"]
[Date "2022.04.23"]
[Round "8.4"]
[White "Mas, Victor"]
[Black "Fardet, Elouan"]
[Result "0-1"]
[ECO "E61"]
[WhiteElo "2190"]
[BlackElo "2162"]
[Annotator "TA"]
[PlyCount "104"]
[EventDate "2022.04.17"]
[EventType "swiss"]
[EventCountry "FRA"]
[SourceTitle "playchess.com"]
[Source "ChessBase"]
[SourceQuality "1"]
[TimeControl "5400+30"]

{[%evp 15,104,8,17,-29,0,0,0,0,13,-25,0,-64,-86,-85,-55,-63,-55,-52,-49,-51,10,0,35,0,26,0,0,0,0,-8,-7,-116,-125,-137,0,-507,-510,-620,-637,-884,-834,-814,-779,-895,-893,-897,-880,-878,-885,-941,-906,-956,-931,-950,-911,-1469,-1302,-1201,-955,-922,-889,-1158,-1125,-1113,-1149,-1214,-1190,-3483,-2912,-2290,-1316,-2275,-1330,-1186,-1129,-29981,-29982,-29980,-29981,-29987,-29988,-29992,-29981,-29992,-29992,-29992,-29987,-29997,-29998,-29998,-29999]} 1. d4 {[%emt 0:05:15]} Nf6 {[%emt 0:00:06]} 2. c4 {[%emt 0:00:11]} g6 {[%emt 0:00:03]} 3. Nc3 {[%emt 0:00:32]} Bg7 {[%emt 0:00:05]} 4. Nf3 {[%emt 0:00:05]} O-O {[%emt 0:00:06]} 5. Bg5 {[%emt 0:00:05]} d6 {[%emt 0:01:50]} 6. e3 {[%emt 0:00:04]} c5 {[%emt 0:02:22]} 7. Be2 {[%emt 0:00:04] 7.d5 is the fancy move.} h6 {[%emt 0:10:03]} 8. Bh4 {[%emt 0:00:07]} Bf5 {[%emt 0:07:43] has lost popularity (8...g5).} 9. h3 {[%emt 0:00:35] E61: King's Indian: Early deviations for White, including Smyslov System.} (9. O-O {should be considered.}) 9... Ne4 {[%emt 0:16:40]} (9... Qb6 {seems wilder.} 10. Bxf6 Qxb2 11. Nd5 Bxf6 12. O-O Nc6) 10. Nxe4 {[%emt 0:04:11]} Bxe4 {[%emt 0:00:04]} 11. O-O $1 {[%emt 0:00:17] The position is equal.} cxd4 {[%emt 0:12:08] [#]} 12. exd4 $146 {[%emt 0:05:52]} ({Predecessor:} 12. Nxd4 Nc6 13. Qd2 Re8 14. Nb5 Bf5 15. Rac1 Rc8 16. f3 a6 17. Nc3 Qa5 18. Bf2 b5 19. cxb5 axb5 20. Qd5 Na7 21. e4 Be6 22. Qb7 Ra8 {½-½ (22) Law,A-Speelman,J Clacton on Sea/ Essex 1974}) 12... d5 {[%emt 0:02:34][%cal Bd6d5,Bd5c4][%mdl 32]} 13. Qb3 {[%emt 0:21:02]} (13. Ne5 $11) 13... Nc6 $15 {[%emt 0:13:00]} 14. Rad1 {[%emt 0:14:04]} dxc4 {[%emt 0:07:09]} 15. Qe3 {[%emt 0:15:41]} Bd5 {[%emt 0:03:44]} 16. Ne5 $1 {[%emt 0:00:51]} g5 {[%emt 0:06:19]} 17. Bg3 {[%emt 0:00:05]} Nxe5 {[%emt 0:00:49]} ({Black should try} 17... b5 $15) 18. dxe5 $11 {[%emt 0:00:50][%cal Oe2c4]} Qa5 {[%emt 0:00:28]} 19. f4 {[%emt 0:02:09]} Rfd8 {[%emt 0:04:11]} 20. Kh2 {[%emt 0:02:08]} Qb6 $36 {[%emt 0:00:26][%mdl 2048] Black has the initiative.} 21. Qc1 {[%emt 0:00:17]} gxf4 {[%emt 0:01:46]} 22. Rxf4 {[%emt 0:01:11]} Be6 {[%emt 0:01:47] And now ...Rxd1 would win.} (22... Bxe5 $2 23. Rg4+ Bg7 24. Be5 $18) 23. Rdf1 {[%emt 0:04:00]} (23. Bxc4 $11 Bxe5 24. Bxe6 Bxf4 25. Bxf7+ Kg7 26. Bxf4 Rxd1 27. Qxd1) 23... Bxe5 $17 {[%emt 0:01:42] &Nero is more active.} 24. Bh5 {[%emt 0:01:27][%cal Of4g4] [#] Black must now prevent Rg4+!} Qxb2 {[%emt 0:01:50]} ({Worse is} 24... Bxf4 25. Qxf4 Rd5 26. Bxf7+ Kg7 27. Qxc4 Bxf7 28. Rxf7+ Kxf7 29. Qxd5+ Qe6 30. Qf3+ Kg8 31. Qxb7 $15) (24... Bxb2 $17 25. Qe1 Rf8) 25. Qe3 {[%emt 0:02:08][%mdl 8192] White is on the road to losing.} (25. Bxf7+ $11 Bxf7 26. Rg4+ Kf8 27. Qxh6+ Bg7 28. Rxf7+ Kxf7 29. Qh5+ Kf8 30. Rf4+ Bf6 31. Qh8+ Kf7 32. Qh7+ Ke6 33. Qf5+ Kf7 34. Qh7+ Ke8 35. Qg8+ Kd7 36. Qd5+ Ke8 37. Qg8+ Kd7 38. Qd5+ Ke8 39. Qg8+) 25... Bxf4 $19 {[%emt 0:01:31]} 26. Bxf4 {[%emt 0:00:01]} Rd3 {[%emt 0:00:32]} 27. Qc5 {[%emt 0:01:27]} Rd5 {[%emt 0:01:31]} 28. Bxf7+ {[%emt 0:00:42]} Bxf7 {[%emt 0:00:10]} 29. Qe3 {[%emt 0:01:32]} Qd4 {[%emt 0:01:37]} 30. Qg3+ {[%emt 0:00:31]} Qg7 {[%emt 0:00:07]} 31. Qh4 {[%emt 0:00:48] [#]} Rg5 $1 {[%emt 0:00:15]} 32. Bxg5 {[%emt 0:00:46]} hxg5 {[%emt 0:00:13]} 33. Qg3 {[%emt 0:00:12]} Rd8 {[%emt 0:00:56]} 34. Qc7 {[%emt 0:00:48]} Qd4 {[%emt 0:01:44]} 35. Kh1 {[%emt 0:00:58]} Qd6 {[%emt 0:00:57]} 36. Qa5 {[%emt 0:00:01]} Qd5 {[%emt 0:00:15]} 37. Qc7 {[%emt 0:00:39]} Rd7 {[%emt 0:00:09]} 38. Qb8+ {[%emt 0:01:10]} Kg7 {[%emt 0:00:04]} 39. Qg3 {[%emt 0:02:44]} Rd6 {[%emt 0:00:08]} 40. Re1 {[%emt 0:01:42]} Re6 {[%emt 0:00:40]} 41. Qc3+ {[%emt 0:00:09]} Kg8 {[%emt 0:00:04] ...Rxe1+ is the strong threat.} 42. Rf1 {[%emt 0:00:23]} Qd3 {[%emt 0:00:35]} 43. Qc1 {[%emt 0:00:02]} Rg6 {[%emt 0:00:14] aiming for ...Bd5.} 44. Rf3 {[%emt 0:00:10]} Qd4 {[%emt 0:00:22] Hoping for ...g4.} 45. Qe1 {[%emt 0:00:47]} g4 {[%emt 0:01:08] Black mates.} 46. Rg3 {[%emt 0:01:50]} gxh3 {[%emt 0:00:25]} 47. Rxh3 {[%emt 0:02:05]} Bd5 {[%emt 0:00:09]} 48. Rh2 {[%emt 0:00:17]} Qe4 {[%emt 0:00:18][%cal Re4e1]} 49. Qa1 {[%emt 0:00:25]} e5 {[%emt 0:00:12]} 50. Qf1 {[%emt 0:01:29]} Rxg2 {[%emt 0:00:11]} 51. Rh8+ {[%emt 0:00:32]} Kxh8 {[%emt 0:00:06][%cal Re4h4]} 52. Qf8+ {[%emt 0:00:05]} Rg8+ {[%emt 0:00:05] Weighted Error Value: White=0.53/Black=0.17 (very precise)} 0-1

[Event "French-ch Youth U18 2022"]
[Site "Agen"]
[Date "2022.04.23"]
[Round "8.5"]
[White "Blanquet, Camille"]
[Black "Lordier, Sophia"]
[Result "1-0"]
[ECO "D35"]
[WhiteElo "1928"]
[BlackElo "1725"]
[Annotator "TA"]
[PlyCount "73"]
[EventDate "2022.04.17"]
[EventType "swiss"]
[EventCountry "FRA"]
[SourceTitle "playchess.com"]
[Source "ChessBase"]
[SourceQuality "1"]
[TimeControl "5400+30"]

{[%evp 21,73,91,92,80,86,87,109,93,113,99,112,62,171,171,171,174,173,78,164,168,174,171,159,172,170,161,178,184,207,194,249,259,360,359,539,512,629,425,606,421,414,400,436,389,333,315,978,801,1076,714,650,630,1385,1343]} 1. d4 {[%emt 0:00:03]} d5 {[%emt 0:01:03]} 2. c4 {[%emt 0:00:11]} e6 {[%emt 0:00:08]} 3. Nc3 {[%emt 0:00:14]} Nf6 {[%emt 0:00:38]} 4. cxd5 {[%emt 0:00:12]} exd5 {[%emt 0:00:07]} 5. Bg5 {[%emt 0:00:09]} Be7 {[%emt 0:00:35]} 6. e3 {[%emt 0:00:14]} O-O {[%emt 0:03:08]} 7. Bd3 {[%emt 0:00:16]} b6 {[%emt 0:01:51]} 8. Bxf6 {[%emt 0:01:52]} Bxf6 {[%emt 0:01:04]} 9. Qh5 {[%emt 0:00:25]} g6 {[%emt 0:00:19]} 10. Qxd5 {[%emt 0:00:24]} c6 {[%emt 0:01:35]} 11. Qxd8 {[%emt 0:02:07]} Rxd8 {[%emt 0:00:01]} 12. Nf3 {[%emt 0:03:17] D35: Queen's Gambit Declined: Exchange Variation.} Bb7 {[%emt 0:01:16]} 13. O-O-O {[%emt 0:10:05]} Na6 {[%emt 0:04:58] [#]} 14. Rhe1 $146 {[%emt 0:05:45] White is better.} ({Predecessor:} 14. Be4 Rac8 15. Kb1 Nc7 16. Rc1 Ba8 17. Rhd1 Kg7 18. Rc2 h6 19. Rcd2 Be7 20. Ne5 {1-0 (66) Cwiek,R (1843)-Kozlowski,M (2009) Szklarska Poreba 2020}) 14... Rac8 {[%emt 0:03:39]} 15. Kb1 {[%emt 0:02:24]} Bg7 {[%emt 0:03:20]} 16. Bc4 {[%emt 0:03:58] &Bianco is more active.} ({Better is} 16. Be4 $16) 16... c5 {[%emt 0:07:17]} (16... b5 $1 $14 17. Be2 c5) 17. d5 $1 $18 {[%emt 0:06:53][%cal Bd4d5,Bd5d6][%mdl 32]} Nc7 {[%emt 0:07:43]} 18. d6 {[%emt 0:11:05]} Ne6 {[%emt 0:21:54] [#]} 19. Nb5 {[%emt 0:08:38]} (19. e4 $1 $18 {is more deadly.}) 19... Rd7 {[%emt 0:05:18] [#]} (19... a6 $16 {might work better.}) 20. e4 $1 {[%emt 0:06:29]} a6 {[%emt 0:02:28]} 21. Bxe6 {[%emt 0:03:09]} fxe6 {[%emt 0:00:06]} 22. Nc7 {[%emt 0:00:25]} e5 {[%emt 0:00:33]} 23. Nd5 {[%emt 0:04:05] Prevents Bf6.} Bxd5 {[%emt 0:00:26]} 24. Rxd5 {[%emt 0:00:06]} ({Of course not} 24. exd5 $6 Rf8 $11) 24... Re8 {[%emt 0:01:49]} 25. Red1 {[%emt 0:02:50]} Kf7 {[%emt 0:10:19]} (25... Re6 {keeps fighting.} 26. b3 Bf6) 26. a4 {[%emt 0:01:14][%cal Ba2a4,Ba4a5,Ba5b6,Bb6b7][%mdl 32]} Red8 {[%emt 0:15:06]} 27. Ng5+ {[%emt 0:02:39]} Kf6 {[%emt 0:01:22]} (27... Kg8 $142 28. a5 Rb8) 28. Nxh7+ {[%emt 0:00:23]} Ke6 {[%emt 0:00:18] Strongly threatening ...Bh6.} 29. Ng5+ {[%emt 0:00:10]} Kf6 {[%emt 0:00:05]} 30. Nf3 {[%emt 0:03:46]} Ke6 {[%emt 0:00:07]} 31. a5 {[%emt 0:02:20] Hoping for Ng5+.} Rxd6 {[%emt 0:01:01]} 32. axb6 {[%emt 0:01:16]} Rxd5 {[%emt 0:00:24]} 33. Rxd5 {[%emt 0:00:34]} Rxd5 {[%emt 0:01:15]} (33... Rb8 34. Rxc5 Rxb6) 34. exd5+ {[%emt 0:00:32] KB-KN. White is clearly winning.} Kd6 {[%emt 0:00:15]} 35. Nd2 {[%emt 0:01:19]} e4 {[%emt 0:01:17]} 36. Nc4+ {[%emt 0:01:24]} Kxd5 {[%emt 0:00:10] [#]} 37. b7 $1 {[%emt 0:00:08] Weighted Error Value: White=0.17 (very precise) /Black=0.41} 1-0

[Event "French-ch Youth U18 2022"]
[Site "Agen"]
[Date "2022.04.23"]
[Round "8.6"]
[White "Tomasi, Elise"]
[Black "Randrianarimanana, Alicia"]
[Result "1-0"]
[ECO "A49"]
[WhiteElo "1988"]
[BlackElo "1985"]
[Annotator "TA"]
[PlyCount "81"]
[EventDate "2022.04.17"]
[EventType "swiss"]
[EventCountry "FRA"]
[SourceTitle "playchess.com"]
[Source "ChessBase"]
[SourceQuality "1"]
[TimeControl "5400+30"]

{[%evp 13,81,28,35,28,43,27,27,18,47,14,81,22,33,8,42,55,70,80,76,62,102,93,117,116,137,118,125,112,171,114,111,71,125,18,79,31,151,0,141,139,237,243,247,0,33,0,0,0,0,-14,27,24,28,36,497,520,511,498,504,495,727,725,1037,1009,1112,1116,1181,1188,1268,1240]} 1. d4 {[%emt 0:00:12]} Nf6 {[%emt 0:00:05]} 2. Nf3 {[%emt 0:00:27]} g6 {[%emt 0:00:05]} 3. g3 {[%emt 0:00:22]} Bg7 {[%emt 0:00:05]} 4. Bg2 {[%emt 0:00:03]} O-O {[%emt 0:00:05]} 5. O-O {[%emt 0:00:23]} d6 {[%emt 0:00:03]} 6. a4 {[%emt 0:01:22]} Nbd7 {[%emt 0:01:45]} 7. a5 {[%emt 0:02:12]} a6 {[%emt 0:02:03]} 8. c4 {[%emt 0:07:10] A49: 1 d4 Nf6 2 Nf3 g6 3 g3: Anti-King's Indian systems.} e5 {[%emt 0:08:54]} 9. dxe5 {[%emt 0:05:29]} dxe5 {[%emt 0:00:27]} 10. Nc3 {[%emt 0:06:04] [#] White has an edge.} c6 $146 {[%emt 0:09:44]} ({Predecessor:} 10... h6 11. Qc2 Re8 12. e4 Nc5 13. Be3 Ncd7 14. h3 c6 15. c5 Qc7 16. Nd2 Bf8 {1-0 (38) Stefanova,A (2486)-Bivol,A (2393) St Petersburg 2018}) 11. Qc2 {[%emt 0:12:50]} Qc7 {[%emt 0:00:58]} (11... Nc5 $11) 12. b3 {[%emt 0:03:58]} ({White should try} 12. b4 $16) 12... Re8 {[%emt 0:12:52]} (12... Nc5 {seems wilder.} 13. Ba3 Bf5 14. Qa2 Nfd7) 13. Bb2 {[%emt 0:09:11]} b6 {[%emt 0:01:48]} 14. axb6 {[%emt 0:14:06]} Qxb6 {[%emt 0:00:28]} 15. Na4 {[%emt 0:00:48]} Qc7 {[%emt 0:07:19]} 16. Rfd1 {[%emt 0:10:12]} h6 {[%emt 0:24:49]} 17. c5 {[%emt 0:01:25]} Rb8 {[%emt 0:03:05]} 18. Nd2 $1 {[%emt 0:02:18] Against e4} Bf8 {[%emt 0:10:50]} 19. Ba3 Nd5 {[%emt 0:05:13]} 20. Nc4 {[%emt 0:04:35]} (20. Bxd5 $6 cxd5 21. c6 Nf6 $11) 20... N7f6 {[%emt 0:01:16]} (20... Nb4 $16 {was necessary.} 21. Qd2 a5) 21. Nd6 {[%emt 0:02:48]} (21. e4 $18) 21... Rd8 $16 {[%emt 0:00:38]} 22. Rab1 {[%emt 0:01:50]} a5 {[%emt 0:00:34] [#]} (22... Be6 $142) 23. Qb2 {[%emt 0:00:57] White is more active.} ({White should play} 23. Bb2 $1 $16) 23... Qe7 {[%emt 0:01:06]} (23... e4 $11 {keeps the balance.}) 24. Qd2 {[%emt 0:01:03]} ({Better is} 24. Nb6 $16) 24... Qa7 {[%emt 0:01:12] [#]} (24... Ba6 $14) 25. Qb2 $2 {[%emt 0:01:38]} (25. Bxd5 cxd5 26. Nxc8 Rbxc8 $11) (25. Bb2 $1 $16 {[%cal Rb2e5]}) 25... Ng4 {[%emt 0:02:42]} (25... Qe7 $11) 26. e4 {[%emt 0:06:00]} Nde3 {[%emt 0:04:04]} (26... Nc7 $16 {was called for.}) 27. fxe3 $18 {[%emt 0:03:14]} Bxd6 {[%emt 0:00:06]} 28. Qc3 $2 {[%emt 0:00:49]} ({Not} 28. cxd6 $2 Qxe3+ 29. Kh1 Nf2+ 30. Qxf2 Qxf2 $19) ({Worse is} 28. Rxd6 Rxd6 29. Qc3 (29. cxd6 $2 {too greedy.} Qxe3+ 30. Kh1 Nf2+ 31. Qxf2 Qxf2 $19) 29... Re6 $17) (28. h3 $18 Bc7 29. Rxd8+ Bxd8 30. hxg4) 28... Be7 {[%emt 0:00:47]} 29. Rxd8+ {[%emt 0:00:46]} Bxd8 {[%emt 0:00:03]} 30. h3 $36 {[%emt 0:00:11][%mdl 2048] White has some pressure.} Nf6 {[%emt 0:00:31]} 31. Qxe5 {[%emt 0:00:22]} Be6 {[%emt 0:00:24]} (31... Qc7 $5 {[%cal Rc7e5]} 32. Qf4 Be6 $11) 32. Nb6 {[%emt 0:00:53]} Qc7 {[%emt 0:00:21]} 33. Bb2 {[%emt 0:01:09] aiming for Qxc7.} Bxb3 $2 {[%emt 0:00:39][%mdl 8192] A mistake that costs the game.} (33... Qxe5 $14 34. Bxe5 Rb7) 34. Qxc7 {[%emt 0:00:07] White is clearly winning.} Bxc7 {[%emt 0:00:06]} 35. Bxf6 {[%emt 0:00:01]} a4 {[%emt 0:01:05]} 36. Bd4 {[%emt 0:00:31]} Bxg3 {[%emt 0:00:35]} (36... Re8 $142 37. e5 Re6) 37. e5 {[%emt 0:00:15]} Rb7 {[%emt 0:01:37] [#]} 38. Nxa4 $1 {[%emt 0:00:21][%mdl 512]} Rb4 {[%emt 0:00:22]} (38... g5 39. Nc3) 39. Nb6 {[%emt 0:00:26]} Bh4 {[%emt 0:00:13]} 40. Bxc6 {[%emt 0:00:05]} Bd8 {[%emt 0:00:35]} 41. Bd5 {[%emt 0:00:43] Weighted Error Value: White=0.33/Black=0.66} 1-0